fUST/lending_fUST_20240825
["ID","MTS","AMOUNT","RATE_DAILY","PERIOD"]
[335847220,1724531470882,-500.0,0.00014794,2]
[335847221,1724531470891,-526.71,0.00014794,2]
[335847222,1724531470901,-744.22,0.00014794,2]
[335847223,1724531470911,-500.0,0.00014794,2]
[335847224,1724531470921,-500.0,0.00014794,2]
[335847225,1724531470931,-631.93,0.00014794,2]
[335847226,1724531470942,-500.0,0.00014794,2]
[335847227,1724531470954,-592.66,0.00014794,2]
[335847228,1724531470966,-2112.1,0.00014794,2]
[335847229,1724531470976,-884.46,0.00014794,2]
[335847230,1724531470986,-500.0,0.00014794,2]
[335847231,1724531470996,-500.0,0.00014794,2]
[335847232,1724531471005,-2931.13,0.00014794,2]
[335847233,1724531471015,-1078.65,0.00014794,2]
[335847234,1724531471027,-500.0,0.00014794,2]
[335847235,1724531471038,-500.0,0.00014794,2]
[335847236,1724531471050,-500.0,0.00014794,2]
[335847237,1724531471060,-618.62,0.00014794,2]
[335847238,1724531471070,-816.32,0.00014794,2]
[335847239,1724531471079,-800.21,0.00014794,2]
[335847240,1724531471090,-781.63,0.00014794,2]
[335847241,1724531471100,-500.0,0.00014794,2]
[335847242,1724531471109,-1221.12,0.00014794,2]
[335847243,1724531471118,-646.32,0.00014794,2]
[335847244,1724531471128,-500.0,0.00014794,2]
[335847245,1724531471138,-2043.72,0.00014794,2]
[335847246,1724531471148,-500.0,0.00014794,2]
[335847247,1724531471158,-1010.23,0.00014794,2]
[335847248,1724531471168,-500.0,0.00014794,2]
[335847249,1724531471177,-766.22,0.00014794,2]
[335847250,1724531471187,-500.0,0.00014794,2]
[335847251,1724531471197,-799.71,0.00014794,2]
[335847252,1724531471207,-500.0,0.00014794,2]
[335847253,1724531471218,-502.44,0.00014794,2]
[335847254,1724531471228,-500.13,0.00014794,2]
[335847255,1724531471238,-578.8,0.00014794,2]
[335847256,1724531471249,-500.0,0.00014794,2]
[335847257,1724531471261,-500.0,0.00014794,2]
[335847258,1724531471271,-594.16,0.00014794,2]
[335847259,1724531471280,-1288.02,0.00014794,2]
[335847260,1724531471289,-969.48,0.00014794,2]
[335847261,1724531471299,-500.0,0.00014794,2]
[335847262,1724531471307,-1368.37,0.00014794,2]
[335847263,1724531471316,-500.0,0.00014794,2]
[335847264,1724531471327,-1302.49,0.00014794,2]
[335847265,1724531471338,-500.0,0.00014794,2]
[335847266,1724531471348,-500.0,0.00014794,2]
[335847267,1724531471358,-500.0,0.00014794,2]
[335847268,1724531471368,-500.0,0.00014794,2]
[335847269,1724531471378,-675.1,0.00014794,2]
[335847270,1724531471387,-500.0,0.00014794,2]
[335847271,1724531471397,-500.0,0.00014794,2]
[335847272,1724531471407,-500.0,0.00014794,2]
[335847273,1724531471416,-500.0,0.00014794,2]
[335847274,1724531471426,-872.09,0.00014794,2]
[335847275,1724531471436,-852.86,0.00014794,2]
[335847276,1724531471445,-500.0,0.00014794,2]
[335847277,1724531471454,-500.0,0.00014794,2]
[335847278,1724531471463,-1320.03,0.00014794,2]
[335847279,1724531471473,-2614.24,0.00014794,2]
[335847280,1724531471483,-500.0,0.00014794,2]
[335847281,1724531471492,-500.0,0.00014794,2]
[335847282,1724531471501,-1263.51,0.00014794,2]
[335847283,1724531471511,-1424.95,0.00014794,2]
[335847284,1724531471521,-2728.43,0.00014794,2]
[335847285,1724531471530,-264.24926105,0.00014794,2]
[335847286,1724531471540,-1292.45,0.00014794,2]
[335847287,1724531471551,-507.92,0.00014794,2]
[335847288,1724531471561,-688.45,0.00014794,2]
[335847289,1724531471571,-500.0,0.00014794,2]
[335847290,1724531471581,-1410.25,0.00014794,2]
[335847291,1724531471590,-754.58,0.00014794,2]
[335847292,1724531471599,-2375.92,0.00014794,2]
[335847293,1724531471609,-500.0,0.00014794,2]
[335847294,1724531471619,-1921.55,0.00014794,2]
[335847295,1724531471630,-980.6,0.00014794,2]
[335847296,1724531471639,-500.0,0.00014794,2]
[335847297,1724531471649,-500.0,0.00014794,2]
[335847298,1724531471659,-500.0,0.00014794,2]
[335847299,1724531471671,-500.0,0.00014794,2]
[335847300,1724531471680,-999.26,0.00014794,2]
[335847301,1724531471689,-1062.09,0.00014794,2]
[335847302,1724531471699,-637.81,0.00014794,2]
[335847303,1724531471708,-1225.13,0.00014794,2]
[335847304,1724531471719,-500.0,0.00014794,2]
[335847305,1724531471729,-800.8,0.00014794,2]
[335847306,1724531471741,-500.0,0.00014794,2]
[335847307,1724531471751,-1128.59,0.00014794,2]
[335847308,1724531471760,-819.98,0.00014794,2]
[335847309,1724531471770,-500.0,0.00014794,2]
[335847310,1724531471779,-548.82,0.00014794,2]
[335847311,1724531471789,-500.0,0.00014794,2]
[335847312,1724531471799,-1327.62,0.00014794,2]
[335847313,1724531471809,-1212.1,0.00014794,2]
[335847314,1724531471819,-816.93,0.00014794,2]
[335847315,1724531471828,-1347.74,0.00014794,2]
[335847316,1724531471838,-654.44,0.00014794,2]
[335847317,1724531471847,-1183.71,0.00014794,2]
[335847318,1724531471857,-500.0,0.00014794,2]
[335847319,1724531471867,-500.0,0.00014794,2]
[335847320,1724531471876,-500.0,0.00014794,2]
[335847321,1724531471886,-500.0,0.00014794,2]
[335847322,1724531471895,-500.0,0.00014794,2]
[335847323,1724531471906,-500.0,0.00014794,2]
[335847324,1724531471915,-500.0,0.00014794,2]
[335847325,1724531471925,-1399.1,0.00014794,2]
[335847326,1724531471935,-1258.48,0.00014794,2]
[335847327,1724531471944,-908.55,0.00014794,2]
[335847328,1724531471954,-669.53,0.00014794,2]
[335847329,1724531471963,-833.72,0.00014794,2]
[335847330,1724531471972,-675.35,0.00014794,2]
[335847331,1724531471982,-500.0,0.00014794,2]
[335847332,1724531471991,-626.94,0.00014794,2]
[335847333,1724531472000,-1045.54,0.00014794,2]
[335847334,1724531472010,-707.88,0.00014794,2]
[335847335,1724531472021,-1304.4,0.00014794,2]
[335847336,1724531472032,-1138.3,0.00014794,2]
[335847337,1724531472044,-1291.63,0.00014794,2]
[335847338,1724531472056,-500.0,0.00014794,2]
[335847339,1724531472067,-622.87,0.00014794,2]
[335847340,1724531472076,-701.54,0.00014794,2]
[335847341,1724531472086,-1511.45,0.00014794,2]
[335847342,1724531472096,-1658.12,0.00014794,2]
[335847343,1724531472106,-842.01,0.00014794,2]
[335847344,1724531472115,-500.0,0.00014794,2]
[335847345,1724531472125,-500.0,0.00014794,2]
[335847346,1724531472136,-500.0,0.00014794,2]
[335847347,1724531472146,-789.09,0.00014794,2]
[335847348,1724531472156,-615.1,0.00014794,2]
[335847349,1724531472167,-697.2,0.00014794,2]
[335847350,1724531472177,-500.0,0.00014794,2]
[335847351,1724531472186,-500.0,0.00014794,2]
[335847352,1724531472195,-805.35,0.00014794,2]
[335847353,1724531472205,-1362.32,0.00014794,2]
[335847354,1724531472214,-983.04,0.00014794,2]
[335847355,1724531472223,-624.92,0.00014794,2]
[335847356,1724531472234,-500.0,0.00014794,2]
[335847357,1724531472244,-530.79,0.00014794,2]
[335847358,1724531472254,-1060.9,0.00014794,2]
[335847359,1724531472265,-500.0,0.00014794,2]
[335847360,1724531472274,-500.0,0.00014794,2]
[335847361,1724531472283,-609.17,0.00014794,2]
[335847362,1724531472293,-569.95,0.00014794,2]
[335847363,1724531472303,-1647.52,0.00014794,2]
[335847364,1724531472312,-509.84,0.00014794,2]
[335847365,1724531472322,-500.0,0.00014794,2]
[335847366,1724531472332,-2067.06,0.00014794,2]
[335847367,1724531472341,-551.95,0.00014794,2]
[335847368,1724531472350,-2076.6,0.00014794,2]
[335847369,1724531472360,-733.55,0.00014794,2]
[335847370,1724531472370,-1212.03,0.00014794,2]
[335847371,1724531472379,-824.83,0.00014794,2]
[335847372,1724531472389,-541.05,0.00014794,2]
[335847373,1724531472398,-500.0,0.00014794,2]
[335847374,1724531472407,-706.53,0.00014794,2]
[335847375,1724531472416,-500.0,0.00014794,2]
[335847376,1724531472426,-1031.72,0.00014794,2]
[335847377,1724531472435,-500.0,0.00014794,2]
[335847378,1724531472445,-500.0,0.00014794,2]
[335847379,1724531472455,-821.42,0.00014794,2]
[335847380,1724531472464,-1269.14,0.00014794,2]
[335847381,1724531472474,-500.0,0.00014794,2]
[335847382,1724531472484,-550.91,0.00014794,2]
[335847383,1724531472494,-2330.5,0.00014794,2]
[335847384,1724531472503,-564.78,0.00014794,2]
[335847385,1724531472513,-500.0,0.00014794,2]
[335847386,1724531472523,-604.05461771,0.00014794,2]
[335847387,1724531472532,-500.0,0.00014794,2]
[335847388,1724531472541,-500.0,0.00014794,2]
[335847389,1724531472685,-536.71,0.00014794,2]
[335847390,1724531472695,-2051.66,0.00014794,2]
[335847391,1724531472705,-500.0,0.00014794,2]
[335847392,1724531472715,-500.0,0.00014794,2]
[335847393,1724531472725,-1362.21,0.00014794,2]
[335847394,1724531472736,-500.0,0.00014794,2]
[335847395,1724531472747,-5397.94,0.00014794,2]
[335847396,1724531472759,-6804.12,0.00014794,2]
[335847397,1724531472769,-648.45,0.00014794,2]
[335847398,1724531472779,-884.96,0.00014794,2]
[335847399,1724531472788,-686.18,0.00014794,2]
[335847400,1724531472798,-500.0,0.00014794,2]
[335847401,1724531472807,-1785.1,0.00014794,2]
[335847402,1724531472817,-711.95,0.00014794,2]
[335847403,1724531472827,-3273.28,0.00014794,2]
[335847404,1724531472837,-1293.47,0.00014794,2]
[335847405,1724531472846,-1164.49,0.00014794,2]
[335847406,1724531472855,-3352.92,0.00014794,2]
[335847407,1724531472865,-500.0,0.00014794,2]
[335847408,1724531472874,-747.91,0.00014794,2]
[335847409,1724531472884,-730.3,0.00014794,2]
[335847410,1724531472894,-1003.19,0.00014794,2]
[335847411,1724531472903,-1036.67,0.00014794,2]
[335847412,1724531472913,-3007.21,0.00014794,2]
[335847413,1724531472923,-598.05,0.00014794,2]
[335847414,1724531472933,-1648.7,0.00014794,2]
[335847415,1724531472943,-500.0,0.00014794,2]
[335847416,1724531472953,-2248.02,0.00014794,2]
[335847417,1724531472964,-940.59,0.00014794,2]
[335847418,1724531472974,-896.98,0.00014794,2]
[335847419,1724531472983,-762.45,0.00014794,2]
[335847420,1724531472993,-500.0,0.00014794,2]
[335847421,1724531473003,-896.49,0.00014794,2]
[335847422,1724531473013,-613.35,0.00014794,2]
[335847423,1724531473024,-500.0,0.00014794,2]
[335847424,1724531473035,-7990.85,0.00014794,2]
[335847425,1724531473048,-500.0,0.00014794,2]
[335847426,1724531473060,-3087.13,0.00014794,2]
[335847427,1724531473070,-1632.06,0.00014794,2]
[335847428,1724531473080,-500.0,0.00014794,2]
[335847429,1724531473091,-570.3,0.00014794,2]
[335847430,1724531473100,-3378.83,0.00014794,2]
[335847431,1724531473109,-963.5,0.00014794,2]
[335847432,1724531473119,-2636.69,0.00014794,2]
[335847433,1724531473130,-764.0,0.00014794,2]
[335847434,1724531473141,-500.0,0.00014794,2]
[335847435,1724531473150,-644.41,0.00014794,2]
[335847436,1724531473161,-1924.56,0.00014794,2]
[335847437,1724531473170,-5273.79,0.00014794,2]
[335847438,1724531473180,-500.0,0.00014794,2]
[335847439,1724531473190,-896.55,0.00014794,2]
[335847440,1724531473200,-10892.31,0.00014794,2]
[335847441,1724531473209,-500.0,0.00014794,2]
[335847442,1724531473219,-500.0,0.00014794,2]
[335847443,1724531473229,-3022.35,0.00014794,2]
[335847444,1724531473238,-7921.53,0.00014794,2]
[335847445,1724531473248,-663.04,0.00014794,2]
[335847446,1724531473257,-500.0,0.00014794,2]
[335847447,1724531473267,-500.0,0.00014794,2]
[335847448,1724531473277,-775.53,0.00014794,2]
[335847449,1724531473286,-1062.57,0.00014794,2]
[335847450,1724531473296,-637.96,0.00014794,2]
[335847451,1724531473311,-670.81,0.00014794,2]
[335847452,1724531473320,-500.0,0.00014794,2]
[335847453,1724531473330,-1720.57,0.00014794,2]
[335847454,1724531473340,-660.87,0.00014794,2]
[335847455,1724531473349,-500.0,0.00014794,2]
[335847456,1724531473359,-802.38,0.00014794,2]
[335847457,1724531473368,-1839.52,0.00014794,2]
[335847458,1724531473378,-22051.78,0.00014794,2]
[335847459,1724531473388,-2124.46,0.00014794,2]
[335847460,1724531473397,-823.85,0.00014794,2]
[335847461,1724531473407,-823.68,0.00014794,2]
[335847462,1724531473416,-2260.21,0.00014794,2]
[335847463,1724531473426,-968.76,0.00014794,2]
[335847464,1724531473435,-4073.78,0.00014794,2]
[335847465,1724531473445,-500.0,0.00014794,2]
[335847466,1724531473454,-500.0,0.00014794,2]
[335847467,1724531473463,-500.0,0.00014794,2]
[335847468,1724531473473,-805.16,0.00014794,2]
[335847469,1724531473482,-728.77,0.00014794,2]
[335847470,1724531473491,-500.0,0.00014794,2]
[335847471,1724531473501,-9393.57,0.00014794,2]
[335847472,1724531473511,-591.04,0.00014794,2]
[335847473,1724531473520,-500.0,0.00014794,2]
[335847474,1724531473529,-3343.01,0.00014794,2]
[335847475,1724531473539,-734.3,0.00014794,2]
[335847476,1724531473548,-1899.14,0.00014794,2]
[335847477,1724531473563,-1029.65,0.00014794,2]
[335847478,1724531473572,-721.66,0.00014794,2]
[335847479,1724531473581,-1502.18,0.00014794,2]
[335847480,1724531473591,-2917.34,0.00014794,2]
[335847481,1724531473600,-1262.64,0.00014794,2]
[335847482,1724531473609,-1438.33,0.00014794,2]
[335847483,1724531473619,-500.0,0.00014794,2]
[335847484,1724531473628,-3106.9,0.00014794,2]
[335847485,1724531473638,-14408.06,0.00014794,2]
[335847486,1724531473647,-2712.11,0.00014794,2]
[335847487,1724531473657,-2193.8,0.00014794,2]
[335847488,1724531473666,-500.0,0.00014794,2]
[335847489,1724531473676,-2815.63,0.00014794,2]
[335847490,1724531473685,-500.0,0.00014794,2]
[335847491,1724531473694,-2259.87,0.00014794,2]
[335847492,1724531473704,-627.85,0.00014794,2]
[335847493,1724531473713,-1129.92,0.00014794,2]
[335847494,1724531473723,-789.7,0.00014794,2]
[335847495,1724531473735,-500.0,0.00014794,2]
[335847496,1724531473746,-500.0,0.00014794,2]
[335847497,1724531473757,-2350.51,0.00014794,2]
[335847498,1724531473767,-500.0,0.00014794,2]
[335847499,1724531473777,-741.25,0.00014794,2]
[335847500,1724531473787,-2327.67,0.00014794,2]
[335847501,1724531473796,-2773.88,0.00014794,2]
[335847502,1724531473806,-500.0,0.00014794,2]
[335847503,1724531473816,-1842.59,0.00014794,2]
[335847504,1724531473826,-4763.79,0.00014794,2]
[335847505,1724531473835,-500.0,0.00014794,2]
[335847506,1724531473845,-1819.59,0.00014794,2]
[335847507,1724531473854,-621.55,0.00014794,2]
[335847508,1724531473863,-3461.51,0.00014794,2]
[335847509,1724531473872,-1288.14,0.00014794,2]
[335847510,1724531473882,-807.08,0.00014794,2]
[335847511,1724531473892,-679.29,0.00014794,2]
[335847512,1724531473901,-7396.52,0.00014794,2]
[335847513,1724531473910,-814.15,0.00014794,2]
[335847514,1724531473919,-500.0,0.00014794,2]
[335847515,1724531473929,-20361.09,0.00014794,2]
[335847516,1724531473941,-904.12,0.00014794,2]
[335847517,1724531473952,-196.06610449,0.00014794,2]
[335847518,1724531473963,-2226.72,0.00014794,2]
[335847519,1724531473972,-11201.75,0.00014794,2]
[335847520,1724531473982,-10180.43,0.00014794,2]
[335847521,1724531473991,-500.0,0.00014794,2]
[335847522,1724531474000,-1538.63,0.00014794,2]
[335847523,1724531474009,-718.11,0.00014794,2]
[335847524,1724531474018,-500.0,0.00014794,2]
[335847525,1724531474028,-699.61,0.00014794,2]
[335847526,1724531474039,-500.0,0.00014794,2]
[335847527,1724531474055,-2896.04,0.00014794,2]
[335847528,1724531474066,-542.44603418,0.00014794,2]
[335847529,1724531474075,-3039.26,0.00014794,2]
[335847530,1724531474084,-500.0,0.00014794,2]
[335847531,1724531474094,-500.0,0.00014794,2]
[335847532,1724531474103,-2034.56,0.00014794,2]
[335847533,1724531474113,-685.31,0.00014794,2]
[335847534,1724531474122,-500.0,0.00014794,2]
[335847535,1724531474133,-1232.81,0.00014794,2]
[335847536,1724531474142,-500.0,0.00014794,2]
[335847537,1724531474151,-500.0,0.00014794,2]
[335847538,1724531474161,-941.9,0.00014794,2]
[335847539,1724531474171,-1832.98,0.00014794,2]
[335847540,1724531474181,-1070.08,0.00014794,2]
[335847541,1724531474190,-11259.44,0.00014794,2]
[335847542,1724531474199,-500.0,0.00014794,2]
[335847543,1724531474209,-4136.04,0.00014794,2]
[335847544,1724531474219,-160.0,0.00014798,14]
[335847545,1724531474228,-153.0557673,0.00014815,2]
[335847546,1724531474237,-250.0,0.00014821,2]
[335847547,1724531474247,-250.0,0.00014821,2]
[335847548,1724531474257,-160.0,0.00014839,15]
[335847549,1724531474267,-160.0,0.00014881,16]
[335847550,1724531474277,-1500.0,0.000149,2]
[335847551,1724531474286,-1504.62,0.000149,2]
[335847552,1724531474295,-1500.0,0.000149,2]
[335847553,1724531474305,-1500.0,0.000149,2]
[335847554,1724531474315,-1500.0,0.000149,2]
[335847555,1724531474324,-1500.0,0.000149,2]
[335847556,1724531474334,-1500.0,0.000149,2]
[335847557,1724531474344,-160.0,0.00014923,17]
[335847558,1724531474354,-160.0,0.00014964,18]
[335847559,1724531474363,-5069.55348703,0.00015,2]
[335847560,1724531474373,-366.15075023,0.00015,2]
[335847561,1724531474382,-2133.44754186,0.00015,2]
[335847562,1724531474392,-279.68915451,0.00015,2]
[335847563,1724531474402,-953.96814034,0.00015,2]
[335847564,1724531474412,-923.34566143,0.00015,2]
[335847565,1724531474423,-154.88740598,0.00015,2]
[335847566,1724531474434,-235.90027652,0.00015,2]
[335847567,1724531474445,-160.0,0.00015006,19]
[335847568,1724531474456,-160.0,0.00015048,20]
[335847569,1724531474465,-813.56,0.00015068,2]
[335847570,1724531474475,-500.0,0.00015068,2]
[335847571,1724531474484,-500.0,0.00015068,2]
[335847572,1724531474493,-734.4,0.00015068,2]
[335847573,1724531474502,-603.04,0.00015068,2]
[335847574,1724531474511,-622.05,0.00015068,2]
[335847575,1724531474521,-500.0,0.00015068,2]
[335847576,1724531474530,-500.0,0.00015068,2]
[335847577,1724531474540,-500.0,0.00015068,2]
[335847578,1724531474549,-500.0,0.00015068,2]
[335847579,1724531474559,-519.65,0.00015068,2]
[335847580,1724531474569,-500.0,0.00015068,2]
[335847581,1724531474578,-713.04,0.00015068,2]
[335847582,1724531474588,-500.0,0.00015068,2]
[335847583,1724531474598,-530.24,0.00015068,2]
[335847584,1724531474607,-500.0,0.00015068,2]
[335847585,1724531474617,-602.6,0.00015068,2]
[335847586,1724531474626,-436.56744189,0.00015068,2]
[335847587,1724531474635,-500.0,0.00015068,2]
[335847588,1724531474645,-784.11,0.00015068,2]
[335847589,1724531474655,-500.0,0.00015068,2]
[335847590,1724531474665,-500.0,0.00015068,2]
[335847591,1724531474674,-500.0,0.00015068,2]
[335847592,1724531474684,-500.0,0.00015068,2]
[335847593,1724531474693,-500.0,0.00015068,2]
[335847594,1724531474703,-500.0,0.00015068,2]
[335847595,1724531474713,-500.0,0.00015068,2]
[335847596,1724531474724,-500.0,0.00015068,2]
[335847597,1724531474734,-500.0,0.00015068,2]
[335847598,1724531474746,-500.0,0.00015068,2]
[335847599,1724531474756,-500.0,0.00015068,2]
[335847600,1724531474767,-563.59,0.00015068,2]
[335847601,1724531474776,-891.68,0.00015068,2]
[335847602,1724531474786,-805.77,0.00015068,2]
[335847603,1724531474795,-429.82972112,0.00015068,2]
[335847604,1724531474806,-500.0,0.00015068,2]
[335847605,1724531474815,-569.79,0.00015068,2]
[335847606,1724531474825,-523.9,0.00015068,2]
[335847607,1724531474835,-562.45,0.00015068,2]
[335847608,1724531474845,-962.65,0.00015068,2]
[335847609,1724531474854,-559.36,0.00015068,2]
[335847610,1724531474973,-500.0,0.00015068,2]
[335847611,1724531474993,-586.18,0.00015068,2]
[335847612,1724531475003,-807.15,0.00015068,2]
[335847613,1724531475012,-583.94,0.00015068,2]
[335847614,1724531475021,-533.88,0.00015068,2]
[335847615,1724531475030,-760.25,0.00015068,2]
[335847616,1724531475040,-583.15,0.00015068,2]
[335847617,1724531475052,-500.0,0.00015068,2]
[335847618,1724531475065,-863.95,0.00015068,2]
[335847619,1724531475074,-520.2,0.00015068,2]
[335847620,1724531475083,-500.0,0.00015068,2]
[335847621,1724531475093,-500.0,0.00015068,2]
[335847622,1724531475102,-500.0,0.00015068,2]
[335847623,1724531475111,-500.0,0.00015068,2]
[335847624,1724531475120,-1365.0,0.00015068,2]
[335847625,1724531475131,-850.08,0.00015068,2]
[335847626,1724531475140,-500.0,0.00015068,2]
[335847627,1724531475150,-498.95215855,0.00015068,2]
[335847628,1724531475159,-752.47,0.00015068,2]
[335847629,1724531475168,-500.0,0.00015068,2]
[335847630,1724531475178,-500.0,0.00015068,2]
[335847631,1724531475187,-1109.59,0.00015068,2]
[335847632,1724531475197,-500.0,0.00015068,2]
[335847633,1724531475206,-706.93,0.00015068,2]
[335847634,1724531475215,-500.0,0.00015068,2]
[335847635,1724531475225,-500.0,0.00015068,2]
[335847636,1724531475234,-500.0,0.00015068,2]
[335847637,1724531475244,-823.53,0.00015068,2]
[335847638,1724531475253,-576.76,0.00015068,2]
[335847639,1724531475262,-500.0,0.00015068,2]
[335847640,1724531475272,-500.0,0.00015068,2]
[335847641,1724531475282,-526.81,0.00015068,2]
[335847642,1724531475291,-500.0,0.00015068,2]
[335847643,1724531475300,-500.0,0.00015068,2]
[335847644,1724531475310,-500.0,0.00015068,2]
[335847645,1724531475319,-500.0,0.00015068,2]
[335847646,1724531475328,-500.0,0.00015068,2]
[335847647,1724531475337,-677.32,0.00015068,2]
[335847648,1724531475346,-500.0,0.00015068,2]
[335847649,1724531475355,-500.0,0.00015068,2]
[335847650,1724531475366,-500.0,0.00015068,2]
[335847651,1724531475375,-500.0,0.00015068,2]
[335847652,1724531475386,-929.47,0.00015068,2]
[335847653,1724531475395,-500.0,0.00015068,2]
[335847654,1724531475405,-748.15,0.00015068,2]
[335847655,1724531475415,-534.28,0.00015068,2]
[335847656,1724531475423,-500.0,0.00015068,2]
[335847657,1724531475433,-500.0,0.00015068,2]
[335847658,1724531475442,-774.94,0.00015068,2]
[335847659,1724531475451,-1168.85,0.00015068,2]
[335847660,1724531475462,-500.0,0.00015068,2]
[335847661,1724531475474,-500.0,0.00015068,2]
[335847662,1724531475484,-500.0,0.00015068,2]
[335847663,1724531475494,-500.0,0.00015068,2]
[335847664,1724531475503,-535.73044661,0.00015068,2]
[335847665,1724531475512,-1085.43,0.00015068,2]
[335847666,1724531475524,-1002.47,0.00015068,2]
[335847667,1724531475536,-639.11,0.00015068,2]
[335847668,1724531475547,-926.86,0.00015068,2]
[335847669,1724531475560,-500.0,0.00015068,2]
[335847670,1724531475570,-761.14,0.00015068,2]
[335847671,1724531475579,-500.0,0.00015068,2]
[335847672,1724531475588,-526.71,0.00015068,2]
[335847673,1724531475597,-744.22,0.00015068,2]
[335847674,1724531475606,-500.0,0.00015068,2]
[335847675,1724531475615,-500.0,0.00015068,2]
[335847676,1724531475624,-631.93,0.00015068,2]
[335847677,1724531475634,-516.89881684,0.00015068,2]
[335847678,1724531475642,-2112.1,0.00015068,2]
[335847679,1724531475651,-592.66,0.00015068,2]
[335847680,1724531475661,-884.46,0.00015068,2]
[335847681,1724531475670,-500.0,0.00015068,2]
[335847682,1724531475679,-500.0,0.00015068,2]
[335847683,1724531475689,-2931.13,0.00015068,2]
[335847684,1724531475699,-1078.65,0.00015068,2]
[335847685,1724531475708,-500.0,0.00015068,2]
[335847686,1724531475718,-500.0,0.00015068,2]
[335847687,1724531475727,-500.0,0.00015068,2]
[335847688,1724531475738,-618.62,0.00015068,2]
[335847689,1724531475747,-816.32,0.00015068,2]
[335847690,1724531475756,-800.21,0.00015068,2]
[335847691,1724531475766,-781.63,0.00015068,2]
[335847692,1724531475775,-500.0,0.00015068,2]
[335847693,1724531475785,-1221.12,0.00015068,2]
[335847694,1724531475795,-646.32,0.00015068,2]
[335847695,1724531475805,-500.0,0.00015068,2]
[335847696,1724531475815,-2043.72,0.00015068,2]
[335847697,1724531475824,-500.0,0.00015068,2]
[335847698,1724531475833,-1010.23,0.00015068,2]
[335847699,1724531475843,-500.0,0.00015068,2]
[335847700,1724531475852,-766.22,0.00015068,2]
[335847701,1724531475862,-500.0,0.00015068,2]
[335847702,1724531475871,-799.71,0.00015068,2]
[335847703,1724531475880,-500.0,0.00015068,2]
[335847704,1724531475890,-502.44,0.00015068,2]
[335847705,1724531475899,-500.13,0.00015068,2]
[335847706,1724531475909,-578.8,0.00015068,2]
[335847707,1724531475918,-500.0,0.00015068,2]
[335847708,1724531475927,-500.0,0.00015068,2]
[335847709,1724531475936,-594.16,0.00015068,2]
[335847710,1724531475946,-1288.02,0.00015068,2]
[335847711,1724531475955,-969.48,0.00015068,2]
[335847712,1724531475964,-500.0,0.00015068,2]
[335847713,1724531475974,-1368.37,0.00015068,2]
[335847714,1724531475986,-500.0,0.00015068,2]
[335847715,1724531475996,-1302.49,0.00015068,2]
[335847716,1724531476005,-500.0,0.00015068,2]
[335847717,1724531476014,-500.0,0.00015068,2]
[335847718,1724531476024,-500.0,0.00015068,2]
[335847719,1724531476034,-500.0,0.00015068,2]